bitfinex/quotes_ETHUSD_20241009
["timestamp","ask_amount","ask_price","bid_price","bid_amount"]
[1728432000601,0.8319,2443.4,2442.6,2.56146539]
[1728432003928,0.8319,2443.4,2442.4,5.92444304]
[1728432004120,0.8319,2443.4,2442.4,2.47112181]
[1728432004436,0.761,2443.3,2442.4,2.47112181]
[1728432004637,0.761,2443.2,2442.4,2.3472823]
[1728432004847,0.761,2443.2,2442.4,1.71442181]
[1728432005029,0.7968,2443.1,2442.4,1.71442181]
[1728432007865,0.7968,2443.1,2442.9,1.73886539]
[1728432008222,0.7968,2443.1,2442.7,2.56406539]
[1728432008426,0.7968,2443.1,2442.7,1.73886539]
[1728432009170,0.7968,2443.1,2442.9,1.73886539]
[1728432009340,3.7862,2443.5,2442.9,1.73886539]
[1728432009545,3.7862,2443.5,2443.1,1.73886539]
[1728432009546,0.7862,2443.5,2443.1,1.73886539]
[1728432011177,0.7862,2443.5,2443.0,0.25080654]
[1728432011363,0.7862,2443.5,2442.9,1.73886539]
[1728432012926,0.7862,2443.5,2443.1,1.73886539]
[1728432013247,0.7862,2443.5,2443.3,1.73886539]
[1728432013847,0.7501,2443.7,2443.3,1.73886539]
[1728432017958,0.7501,2443.7,2443.2,0.7511]
[1728432018153,0.7501,2443.7,2443.0,0.8059]
[1728432018356,0.7661,2443.4,2442.5,2.53165584]
[1728432018668,0.7661,2443.3,2442.6,0.46737487]
[1728432019067,0.7661,2443.3,2442.9,1.73886539]
[1728432019702,0.7661,2443.3,2442.8,0.8172]
[1728432022802,0.7661,2443.3,2442.9,1.73886539]
[1728432023592,0.7672,2443.6,2443.1,1.73886539]
[1728432023785,0.7672,2443.6,2443.3,1.73886539]
[1728432024000,0.7672,2443.6,2443.3,0.25278654]
[1728432024153,0.7672,2443.6,2443.1,1.73886539]
[1728432025596,0.7672,2443.6,2443.3,1.73886539]
[1728432026709,0.7672,2443.6,2443.1,1.73886539]
[1728432030293,0.7672,2443.6,2443.3,1.73886539]
[1728432030601,0.7672,2443.6,2443.4,4.09255]
[1728432031104,0.7834,2443.9,2443.5,5.83135539]
[1728432031315,1.5909571,2443.9,2443.5,1.73886539]
[1728432031614,1.5909571,2443.9,2443.5,5.83133539]
[1728432032110,1.5909571,2443.9,2443.5,1.73886539]
[1728432032406,1.5909571,2443.9,2443.4,4.09255]
[1728432032590,0.7888,2443.6,2443.0,4.09323]
[1728432032764,0.7888,2443.6,2443.1,4.09315]
[1728432032965,0.7888,2443.6,2443.1,5.83201539]
[1728432034079,0.7888,2443.6,2443.3,1.73886539]
[1728432035101,0.7888,2443.6,2443.3,5.83166539]
[1728432035470,0.7888,2443.6,2443.4,4.09262]
[1728432035809,4.09192,2443.9,2443.5,4.09249]
[1728432035810,0.8088,2443.9,2443.5,4.09249]
[1728432036008,1.9472051,2443.9,2443.5,4.09249]
[1728432037809,0.8088,2443.9,2443.5,4.09249]
[1728432039240,0.8088,2443.9,2443.6,4.09228]
[1728432040918,0.8088,2443.9,2443.5,4.09245]
[1728432041616,0.8088,2443.9,2443.6,4.0923]
[1728432041819,0.8088,2443.9,2443.6,8.1846]
[1728432042004,0.8088,2443.9,2443.7,1.07546654]
[1728432042376,0.8088,2443.9,2443.7,4.09215]
[1728432043119,0.8088,2443.9,2443.7,5.83101539]
[1728432043887,0.20059103,2444.0,2443.8,4.09198]
[1728432046013,0.20059103,2444.0,2443.9,4.09182]
[1728432046583,0.7709,2444.2,2443.9,4.09182]
[1728432046784,0.7709,2444.2,2443.9,5.16609354]
[1728432046988,0.7709,2444.2,2443.9,6.90495893]
[1728432047313,0.8272,2444.3,2443.9,6.90495893]
[1728432047471,0.8272,2444.3,2443.9,5.83068539]
[1728432050026,3.20465583,2444.4,2444.1,5.83033539]
[1728432050027,0.20465583,2444.4,2444.1,5.83033539]
[1728432050178,0.7887,2444.5,2444.1,5.83033539]
[1728432050372,0.7887,2444.5,2444.1,6.49471893]
[1728432050791,0.7887,2444.5,2444.1,10.58610893]
[1728432051997,0.7887,2444.5,2444.1,6.49463893]
[1728432052474,0.7887,2444.5,2444.1,10.58601893]
[1728432052889,0.7887,2444.5,2444.1,6.49462893]
[1728432053088,0.7887,2444.5,2444.1,10.58600893]
[1728432053692,0.7887,2444.5,2444.1,6.49462893]
[1728432053919,0.7887,2444.5,2444.1,6.49461893]
[1728432054709,0.7887,2444.5,2444.2,4.09128]
[1728432055323,0.7887,2444.5,2444.2,5.23121989]
[1728432056224,0.7887,2444.5,2444.2,1.13993989]
[1728432056789,0.7887,2444.5,2444.1,4.09137]
[1728432058610,0.7887,2444.5,2444.2,4.09127]
[1728432059024,0.7887,2444.5,2444.1,5.83023539]
[1728432060482,0.7887,2444.5,2444.0,0.8135]
[1728432060483,4.87952,2444.5,2444.0,0.8135]
[1728432060711,4.87952,2444.5,2443.7,4.09204]
[1728432060712,0.7516,2444.1,2443.7,4.09204]
[1728432061519,4.84318,2444.1,2443.5,4.09241]
[1728432061843,0.7855,2444.0,2443.4,0.7509]
[1728432062034,4.87717,2444.0,2443.4,5.50168854]
[1728432062682,4.87717,2444.0,2443.4,1.40914854]
[1728432062891,4.87717,2444.0,2443.4,0.7509]
[1728432062892,4.09182,2443.9,2443.4,0.7509]
[1728432063127,0.7855,2443.8,2443.3,4.09272]
[1728432064656,0.7855,2443.8,2443.1,1.73886539]
[1728432064657,0.816,2444.0,2443.6,4.09231]
[1728432065029,0.7938,2443.9,2443.3,4.0927]
[1728432066036,0.7938,2443.9,2443.4,4.09265]
[1728432067033,4.88562,2443.9,2443.4,4.09265]
[1728432067227,0.8129,2443.8,2443.4,4.09265]
[1728432068520,0.8129,2443.8,2443.4,5.16143454]
[1728432068716,0.8129,2443.8,2443.4,6.90029993]
[1728432068953,0.8129,2443.8,2443.4,10.99285993]
[1728432069160,4.29858883,2444.1,2443.5,4.09237]
[1728432069460,0.8291,2444.0,2443.5,4.88437]
[1728432069762,0.8291,2444.0,2443.5,0.792]
[1728432069922,0.8291,2444.0,2443.6,4.09231]
[1728432071357,0.8291,2444.0,2443.5,4.88447]
[1728432071563,0.8291,2444.0,2443.6,4.09232]
[1728432071773,0.764,2444.4,2444.0,4.09164]
[1728432072057,0.764,2444.6,2444.2,5.83005539]
[1728432072242,0.764,2444.6,2444.3,4.09114]
[1728432072646,0.764,2444.6,2444.2,9.92123539]
[1728432072852,0.764,2444.6,2444.2,5.83004539]
[1728432073179,0.764,2444.6,2444.2,6.41304993]
[1728432073386,0.8047,2444.8,2444.4,4.09088]
[1728432073541,4.08991,2445.1,2444.4,4.09088]
[1728432073542,0.7928,2445.1,2444.6,5.82945539]
[1728432073740,4.88264,2445.1,2444.5,0.486888]
[1728432073981,4.88264,2445.1,2444.4,9.92058539]
[1728432074143,4.88264,2445.1,2444.5,4.0908]
[1728432074348,4.88264,2445.1,2444.4,5.82970539]
[1728432074544,4.88264,2445.1,2444.6,4.09063]
[1728432074756,4.88264,2445.1,2444.4,8.18171]
[1728432074975,9.869773,2445.1,2444.4,4.09084]
[1728432075175,4.08998,2445.0,2444.4,4.09084]
[1728432077298,4.08998,2445.0,2444.4,8.18171]
[1728432077498,4.08998,2445.0,2444.4,4.09084]
[1728432077681,4.08998,2445.0,2444.4,4.63602445]
[1728432080161,4.08998,2445.0,2444.4,8.72690445]
[1728432080612,4.88264,2445.1,2444.5,4.0908]
[1728432081796,4.88264,2445.1,2444.4,4.63602445]
[1728432082002,4.88264,2445.1,2444.6,4.09061]
[1728432082209,4.88264,2445.1,2444.6,4.96327344]
[1728432082688,0.7928,2445.1,2444.7,4.09047]
[1728432082888,0.7928,2445.1,2444.6,5.77817344]
[1728432083115,0.70988594,2445.1,2444.6,5.77817344]
[1728432083281,0.70988594,2445.1,2444.7,0.95423006]
[1728432086108,4.79978594,2445.1,2444.7,0.95423006]
[1728432086287,4.88569,2445.0,2444.4,4.63607445]
[1728432086630,4.88569,2445.0,2444.4,8.72695445]
[1728432086914,4.88569,2445.0,2444.5,4.96350545]
[1728432087217,0.7957,2445.0,2444.5,4.96350545]
[1728432087777,0.7684,2444.9,2444.5,0.87269545]
[1728432087979,0.7684,2444.8,2444.5,0.87269545]
[1728432088788,0.7684,2444.8,2444.4,0.54518445]
[1728432095329,0.7684,2444.8,2444.4,4.63615445]
[1728432097187,0.7684,2444.8,2444.4,8.72712445]
[1728432097388,0.7684,2444.8,2444.4,4.63615445]
[1728432098134,4.85873,2444.8,2444.4,0.54518445]
[1728432098333,4.85873,2444.8,2444.2,8.18241]
[1728432098489,0.7684,2444.8,2444.3,4.09114]
[1728432101143,0.7684,2444.8,2444.2,4.0912]
[1728432101297,0.7684,2444.8,2444.4,4.09097]
[1728432104747,0.7684,2444.8,2444.4,8.99845]
[1728432105048,0.7684,2444.8,2444.4,8.99837]
[1728432105550,0.7684,2444.8,2444.5,4.09081]
[1728432105707,0.7684,2444.8,2444.4,4.90748]
[1728432105911,0.7684,2444.8,2444.4,9.53003]
[1728432106110,0.7684,2444.8,2444.4,5.43914]
[1728432106748,0.7684,2444.8,2444.4,5.43913]
[1728432107328,0.7684,2444.8,2444.4,4.62253]
[1728432108558,4.85876,2444.8,2444.3,0.40912]
[1728432108856,0.7684,2444.8,2444.4,4.09096]
[1728432109014,0.7684,2444.8,2444.2,4.09123]
[1728432109523,0.7684,2444.8,2444.3,4.09114]
[1728432110230,0.7674,2444.6,2444.0,4.09149]
[1728432110558,0.7674,2444.5,2444.0,4.09149]
[1728432110858,0.7674,2444.5,2444.1,4.09146]
[1728432111044,3.0,2444.9,2444.3,4.09105]
[1728432111245,0.7674,2444.8,2444.4,4.67384977]
[1728432111431,0.7674,2444.8,2444.4,4.09098]
[1728432112756,0.7674,2444.8,2444.3,4.09105]
[1728432112917,0.7674,2444.8,2444.4,4.09096]
[1728432113547,0.7674,2444.8,2444.5,4.0908]
[1728432113733,0.7674,2444.8,2444.3,4.09105]
[1728432113949,0.7674,2444.8,2444.4,4.75649977]
[1728432116745,0.7674,2444.8,2444.4,0.66558977]
[1728432117069,0.7674,2444.8,2444.5,4.09081]
[1728432120365,0.7674,2444.8,2444.4,0.66558977]
[1728432120540,0.7674,2444.8,2444.3,4.091]
[1728432120739,4.85772,2444.8,2444.3,8.18203]
[1728432120944,4.85772,2444.8,2444.3,4.091]
[1728432122728,0.7674,2444.8,2444.3,4.091]
[1728432122924,4.85774,2444.8,2444.3,4.091]
[1728432123367,4.85774,2444.8,2444.3,8.18203]
[1728432123571,4.85774,2444.8,2444.3,4.991923]
[1728432125241,4.85774,2444.8,2444.3,4.091]
[1728432125546,4.09034,2444.8,2444.3,4.091]
[1728432125751,0.7609,2444.7,2444.3,4.091]
[1728432127569,0.7609,2444.7,2444.4,4.09089]
[1728432127730,3.0,2444.9,2444.4,4.09089]
[1728432127931,3.7771,2444.9,2444.4,4.89919]
[1728432130452,3.7771,2444.9,2444.4,5.97197377]
[1728432131479,3.7771,2444.9,2444.4,5.16367377]
[1728432131979,3.7771,2444.9,2444.5,4.09081]
[1728432132193,0.7771,2444.9,2444.6,1.73764765]
[1728432132350,0.7771,2444.9,2444.6,5.82825765]
[1728432132688,0.7771,2444.9,2444.7,1.06959776]
[1728432134587,0.7955,2445.1,2444.8,1.73764765]
[1728432135770,6.44013991,2445.3,2444.8,2.54514765]
[1728432135771,4.00234651,2445.3,2444.8,2.54514765]
[1728432135970,0.8009,2445.3,2444.9,4.09001]
[1728432136290,0.8009,2445.3,2444.9,4.75352577]
[1728432137470,0.8009,2445.3,2444.9,0.66351577]
[1728432138382,0.8009,2445.3,2444.7,4.09036]
[1728432138383,0.8009,2445.3,2444.6,4.09063]
[1728432138589,0.8287,2445.3,2444.6,4.09063]
[1728432138786,0.8287,2445.3,2444.5,10.67397765]
[1728432138787,4.08982,2445.1,2444.5,10.67397765]
[1728432139101,0.7616,2445.0,2444.5,6.58324765]
[1728432139696,0.7616,2445.0,2444.5,10.67396765]
[1728432139992,0.7616,2445.0,2444.6,1.17467514]
[1728432141362,0.7616,2445.0,2444.6,5.26529514]
[1728432141796,4.09014,2444.9,2444.4,4.09093]
[1728432142104,4.09014,2444.9,2444.2,1.71445584]
[1728432142105,4.8436,2444.8,2444.2,4.09119]
[1728432142666,8.93404,2444.8,2444.2,4.09119]
[1728432142901,4.8436,2444.8,2444.3,0.818256]
[1728432143604,9.14331031,2444.8,2444.3,0.818256]
[1728432144262,5.05287031,2444.8,2444.3,0.818256]
[1728432144992,4.09049,2444.7,2444.3,0.818256]
[1728432145518,9.14334031,2444.8,2444.3,0.818256]
[1728432145728,0.7849,2444.7,2444.0,0.7505]
[1728432145909,0.7849,2444.7,2443.7,5.13666976]
[1728432145910,4.09124,2444.3,2443.7,7.54420349]
[1728432146222,4.09149,2444.1,2443.6,0.761]
[1728432146520,4.09149,2444.1,2443.7,1.06833976]
[1728432146899,0.7699,2444.2,2443.7,5.16047976]
[1728432147924,0.7699,2444.2,2443.7,9.25243976]
[1728432148132,0.7699,2444.2,2443.7,5.16038976]
[1728432148352,0.7699,2444.2,2443.5,5.83002765]
[1728432148353,4.092,2443.8,2443.2,4.85812]
[1728432148554,0.8253,2443.6,2443.2,4.09297]
[1728432148718,0.8253,2443.6,2443.3,5.08515577]
[1728432149049,0.8253,2443.6,2443.3,4.09279]
[1728432149258,0.8032,2443.8,2443.4,4.09261]
[1728432149424,0.8032,2443.8,2443.3,5.83043765]
[1728432149632,0.8032,2443.8,2443.4,0.58304377]
[1728432150855,0.8032,2443.8,2443.1,5.83076765]
[1728432151061,4.89529,2443.8,2443.2,4.09293]
[1728432152075,0.8032,2443.8,2443.3,4.09281]
[1728432152265,0.8032,2443.8,2443.6,4.09231]
[1728432152414,0.8032,2443.8,2443.5,1.73764765]
[1728432152758,0.8032,2443.8,2443.6,4.0923]
[1728432153361,0.8032,2443.8,2443.5,1.73764765]
[1728432153730,0.8032,2443.8,2443.5,5.83000765]
[1728432153924,0.8032,2443.8,2443.6,1.11597986]
[1728432154872,0.8032,2443.8,2443.4,0.409281]
[1728432155167,4.89521,2443.8,2443.3,4.09276]
[1728432155686,0.8171,2443.5,2443.0,4.09332]
[1728432155914,0.8128,2443.2,2442.4,8.62254363]
[1728432156202,0.8128,2443.2,2442.5,0.69900292]
[1728432156361,4.9059,2443.2,2442.6,8.18773]
[1728432156565,4.9059,2443.2,2442.7,0.88867329]
[1728432156767,4.0931,2443.2,2442.5,0.69900292]
[1728432156998,4.09343,2443.0,2442.3,4.09436]
[1728432157216,0.8029,2442.9,2442.4,4.09431]
[1728432158006,4.89642,2442.9,2442.2,8.99351]
[1728432158210,4.09343,2443.0,2442.2,4.09454]
[1728432158370,0.7575,2442.5,2442.0,4.09491]
[1728432158560,0.7575,2442.5,2442.0,8.18979]
[1728432158902,0.7575,2442.5,2442.0,4.09488]
[1728432159084,0.7575,2442.5,2442.0,8.18978]
[1728432159295,4.09461,2442.3,2441.6,4.09557]
[1728432159470,0.8,2442.2,2441.6,4.09557]
[1728432159894,0.8,2442.2,2441.7,4.09547]
[1728432160105,0.8,2442.2,2441.8,0.409547]
[1728432160707,0.8,2442.2,2441.5,4.0957]
[1728432160910,4.09489,2442.1,2441.5,4.0957]
[1728432161274,8.18986,2442.1,2441.5,4.0957]
[1728432161477,4.09503,2442.0,2441.5,4.0957]
[1728432161914,4.09489,2442.1,2441.5,4.0957]
[1728432163270,0.7584,2442.0,2441.5,4.0957]
[1728432164158,0.7584,2442.0,2441.3,4.09613]
[1728432164159,4.09531,2441.9,2441.3,4.09613]
[1728432164313,4.92076,2441.8,2441.1,8.19278]
[1728432164513,0.8254,2441.8,2441.2,4.09632]
[1728432165452,0.8254,2441.8,2441.3,4.09616]
[1728432165650,0.8254,2441.8,2441.4,4.09598]
[1728432166216,0.8254,2441.8,2441.5,4.0958]
[1728432166416,0.8254,2441.8,2441.5,9.010731]
[1728432166822,0.8254,2441.8,2441.5,4.914931]
[1728432167438,0.8254,2441.8,2441.3,4.09611]
[1728432167969,0.8254,2441.8,2441.1,4.915718]
[1728432168936,4.09551,2441.7,2441.1,9.012128]
[1728432169143,0.8328,2441.6,2441.1,4.915688]
[1728432170243,0.8328,2441.6,2441.1,4.915678]
[1728432170578,0.8328,2441.6,2441.1,4.0964]
[1728432171443,0.8328,2441.6,2441.1,8.1928]
[1728432171645,0.8328,2441.6,2441.1,4.0964]
[1728432171986,0.8328,2441.6,2440.3,7.52523979]
[1728432171987,0.7564,2441.5,2441.0,4.09665]
[1728432172388,0.7564,2441.5,2440.5,1.4068847]
[1728432172389,0.7564,2441.4,2440.7,4.09708]
[1728432172551,4.92098,2441.3,2440.7,4.09707]
[1728432172760,4.921,2441.3,2440.7,4.09707]
[1728432173291,0.8248,2441.3,2440.7,4.09707]
[1728432173878,0.8248,2441.3,2441.0,4.09657]
[1728432174172,0.8248,2441.3,2441.1,0.86516836]
[1728432174691,3.0,2441.6,2441.2,4.09623]
[1728432174692,0.7771,2441.6,2441.2,4.09623]
[1728432174865,0.7771,2441.6,2441.3,4.09605]
[1728432175184,0.7771,2441.6,2441.1,4.63228199]
[1728432175185,0.7771,2441.6,2441.4,4.09599]
[1728432175391,0.7771,2441.6,2441.4,4.505509]
[1728432175591,0.7771,2441.6,2441.2,4.09626]
[1728432176583,0.7771,2441.6,2441.2,8.19249]
[1728432176789,0.7771,2441.6,2441.2,4.09623]
[1728432178589,0.7771,2441.6,2441.2,8.19244]
[1728432178891,0.7771,2441.6,2441.2,4.09621]
[1728432179048,0.7771,2441.6,2441.2,5.00200784]
[1728432179852,0.7771,2441.6,2441.2,9.09824784]
[1728432180465,0.7771,2441.6,2441.2,5.00200784]
[1728432180692,0.7771,2441.6,2441.0,4.09656]
[1728432180857,0.7771,2441.6,2441.1,4.09641]
[1728432182313,4.87288,2441.6,2441.0,4.09656]
[1728432182719,4.09601,2441.4,2440.9,0.788]
[1728432182885,0.8027,2441.3,2440.8,8.19382]
[1728432183210,0.8027,2441.3,2440.8,4.66228155]
[1728432183602,0.8027,2441.2,2440.6,4.09724]
[1728432183912,4.89907,2441.2,2440.7,4.09708]
[1728432184311,4.89916,2441.2,2440.6,4.09724]
[1728432184511,4.89916,2441.2,2440.6,4.96158115]
[1728432184713,3.7661,2441.5,2440.9,3.76711363]
[1728432184920,3.7661,2441.5,2440.9,7.86382363]
[1728432185088,3.7661,2441.5,2441.1,4.09651]
[1728432185702,0.7661,2441.5,2441.1,8.19302]
[1728432186025,0.7661,2441.5,2441.1,4.09651]
[1728432186313,0.7661,2441.5,2441.1,8.19289]
[1728432186502,0.7661,2441.5,2441.1,4.09638]
[1728432186815,0.7661,2441.5,2441.1,8.19278]
[1728432186979,0.7661,2441.5,2441.1,4.09638]
[1728432187579,0.7661,2441.5,2441.1,8.1928]
[1728432187786,0.7661,2441.5,2441.1,4.09638]
[1728432188113,0.7661,2441.5,2441.1,8.19277]
[1728432188479,0.7661,2441.5,2441.2,4.09624]
[1728432188675,0.8227,2441.7,2441.3,4.09615]
[1728432190809,0.8227,2441.7,2441.3,8.19223]
[1728432191028,0.8227,2441.7,2441.3,4.09608]
[1728432191229,0.8227,2441.7,2441.3,5.11336884]
[1728432191729,0.8227,2441.7,2441.3,5.11335884]
[1728432192056,0.8227,2441.7,2441.3,4.09607]
[1728432194027,0.8227,2441.7,2441.3,4.73393085]
[1728432194546,0.8227,2441.7,2441.3,4.09607]
[1728432196043,0.8227,2441.7,2441.5,4.09582]
[1728432198516,0.8227,2441.7,2441.5,4.09573]
[1728432198716,0.8227,2441.7,2441.5,4.56904778]
[1728432199546,4.9182,2441.7,2441.2,0.63744778]
[1728432199728,4.9182,2441.7,2441.1,8.97715]
[1728432200053,4.9182,2441.7,2441.2,4.09633]
[1728432202620,0.8227,2441.7,2441.2,4.09633]
[1728432202820,0.8227,2441.7,2441.2,4.994038]
[1728432203225,0.8227,2441.7,2441.2,4.09633]
[1728432204408,4.91821,2441.7,2441.2,4.09633]
[1728432204946,0.8227,2441.7,2441.3,4.09617]
[1728432205107,0.8227,2441.7,2441.3,4.915422]
[1728432205444,0.8227,2441.7,2441.3,4.09617]
[1728432207114,0.8227,2441.7,2441.3,4.09616]
[1728432209046,0.8227,2441.7,2441.1,3.76711363]
[1728432209258,0.8316,2442.1,2441.6,4.09567]
[1728432209552,0.8316,2442.1,2441.7,8.19084]
[1728432209842,0.8316,2442.1,2441.8,4.09532]
[1728432210058,0.8231,2442.3,2441.9,4.09504]
[1728432210346,0.8231,2442.3,2441.9,4.504574]
[1728432210508,0.8231,2442.3,2442.0,4.09499]
[1728432211007,0.8231,2442.3,2441.9,8.599624]
[1728432211204,0.8231,2442.3,2442.0,4.0949]
[1728432211417,0.8231,2442.3,2442.0,4.9548454]
[1728432211722,0.8231,2442.3,2442.0,0.8599454]
[1728432212670,4.91771,2442.3,2441.7,4.09538]
[1728432213725,4.91771,2442.3,2441.7,8.19078]
[1728432213925,4.91771,2442.3,2441.8,4.09533]
[1728432214429,4.91771,2442.3,2441.7,4.09538]
[1728432214666,4.91771,2442.3,2441.7,9.08851084]
[1728432215675,0.8231,2442.3,2441.9,4.09507]
[1728432215887,7.42,2442.6,2441.7,4.99315084]
[1728432215888,7.42,2442.6,2442.2,4.09466]
[1728432216175,0.7559,2442.8,2442.3,4.0945]
[1728432216329,0.7559,2442.8,2442.3,4.503856]
[1728432216874,0.7559,2442.8,2442.4,4.0942]
[1728432217027,11.51325,2443.1,2442.6,4.09396]
[1728432217227,0.7606,2443.0,2442.6,4.09396]
[1728432217659,4.63029804,2443.0,2442.3,4.503886]
[1728432217870,4.63029804,2443.0,2442.3,4.09442]
[1728432217871,4.85411,2442.9,2442.3,4.09442]
[1728432219325,0.7606,2442.9,2442.3,4.09439]
[1728432219550,0.7606,2442.9,2442.4,4.0942]
[1728432219766,0.7606,2442.9,2442.5,0.78613136]
[1728432220096,0.7606,2443.2,2442.7,4.09378]
[1728432221475,3.0,2443.1,2442.6,4.90719]
[1728432221681,3.7606,2443.2,2442.6,4.90717]
[1728432222037,3.7606,2443.2,2442.7,4.09382]
[1728432222650,3.7606,2443.2,2442.6,4.90717]
[1728432222651,4.09317,2443.1,2442.6,4.90717]
[1728432222855,4.09317,2443.1,2442.6,4.09387]
[1728432223778,4.09317,2443.1,2442.4,4.09424]
[1728432223779,4.85445,2443.0,2442.4,4.09424]
[1728432223979,4.85445,2443.0,2442.1,4.09481]
[1728432223980,0.7611,2442.5,2442.1,4.09481]
[1728432224358,0.7611,2442.5,2442.1,5.37340936]
[1728432225381,0.7611,2442.5,2442.2,4.09461]
[1728432225673,4.89369,2442.7,2442.2,4.09461]
[1728432225886,3.76,2442.9,2442.3,3.76711363]
[1728432226090,0.76,2442.9,2442.5,4.09405]
[1728432227983,0.76,2442.9,2442.4,4.55223136]
[1728432228495,4.85353,2442.9,2442.3,4.09449]
[1728432228685,8.94713,2442.9,2442.3,4.09449]
[1728432229359,4.85353,2442.9,2442.3,4.09449]
[1728432229558,4.85353,2442.9,2442.3,5.37145636]
[1728432230145,8.94713,2442.9,2442.3,1.27696636]
[1728432230371,4.0938,2442.8,2442.3,1.27696636]
[1728432230584,4.0938,2442.8,2442.0,4.887]
[1728432230585,4.09412,2442.6,2442.0,4.887]
[1728432230783,4.09419,2442.5,2442.0,4.0949]
[1728432231084,0.7659,2442.4,2441.8,4.88866]
[1728432231283,0.7659,2442.4,2442.0,4.0949]
[1728432232092,0.7659,2442.4,2441.9,0.95535145]
[1728432232093,4.86029,2442.4,2441.9,0.95535145]
[1728432232297,4.09419,2442.5,2441.6,11.39563]
[1728432232298,4.09507,2442.0,2441.6,7.3]
[1728432232485,0.7659,2442.3,2441.5,4.09582]
[1728432232486,0.7659,2441.9,2441.5,4.09582]
[1728432232796,0.7659,2441.9,2441.4,4.88929]
[1728432232986,0.7659,2441.9,2441.5,0.488929]
[1728432233502,0.7659,2441.9,2441.5,4.584719]
[1728432234192,0.7659,2441.9,2441.5,0.488929]
[1728432235105,0.7659,2441.9,2441.5,4.584759]
[1728432236910,0.7659,2441.9,2441.5,0.488929]
[1728432237498,0.7659,2441.9,2441.2,4.09627]
[1728432237499,0.7595,2441.8,2441.2,4.09627]
[1728432239116,4.09561,2441.7,2441.1,4.91059]
[1728432239272,0.8104,2441.6,2441.1,4.09649]
[1728432239470,0.8104,2441.6,2441.1,5.36959936]
[1728432239995,0.8104,2441.6,2441.2,4.09633]
[1728432240210,0.8104,2441.6,2441.2,4.09624]
[1728432241407,0.8104,2441.6,2441.3,4.09617]
[1728432241609,0.8104,2441.6,2441.3,5.4194333]
[1728432241827,8.19055,2441.9,2441.4,4.09598]
[1728432241828,0.8104,2441.8,2441.4,4.09598]
[1728432241972,0.8104,2441.8,2441.5,4.09582]
[1728432242173,0.8104,2441.8,2441.6,4.09566]
[1728432242404,3.0,2442.0,2441.8,4.09531]
[1728432242405,0.8104,2442.0,2441.8,4.09531]
[1728432242818,0.8104,2442.0,2441.8,5.29111636]
[1728432243772,0.8104,2442.0,2441.8,9.38635636]
[1728432244119,0.821,2442.3,2441.9,4.09505]
[1728432244789,0.821,2442.3,2441.8,4.09524]
[1728432244991,0.821,2442.3,2441.8,4.95687536]
[1728432245520,0.821,2442.3,2441.9,4.09515]
[1728432247221,4.09494,2442.1,2441.3,0.8136]
[1728432247407,0.789,2442.0,2441.5,4.09583]
[1728432248540,0.789,2442.0,2441.4,4.09588]
[1728432248689,0.789,2442.0,2441.6,4.09563]
[1728432249024,0.789,2442.0,2441.7,4.09549]
[1728432249224,0.789,2442.0,2441.6,8.19121]
[1728432249798,0.789,2442.0,2441.7,4.09549]
[1728432250193,0.789,2442.0,2441.6,8.19114]
[1728432250394,0.789,2442.0,2441.6,4.9685953]
[1728432250928,0.789,2442.0,2441.6,9.0641753]
[1728432251510,0.789,2442.0,2441.7,4.09548]
[1728432252985,0.789,2442.0,2441.8,4.09529]
[1728432253221,0.789,2442.0,2441.9,0.409529]
[1728432253427,4.09439,2442.4,2441.9,4.504699]
[1728432253636,0.7951,2442.2,2442.0,4.09499]
[1728432254210,3.0,2442.5,2442.0,4.09499]
[1728432254211,0.7951,2442.5,2442.2,4.09466]
[1728432255738,0.7951,2442.5,2442.1,0.4504519]
[1728432256106,0.7951,2442.5,2442.2,4.09465]
[1728432257437,0.7951,2442.5,2442.1,0.4504519]
[1728432257733,0.7951,2442.5,2442.0,4.09485]
[1728432257734,0.7951,2442.5,2442.0,8.18976]
[1728432258533,0.8262,2442.7,2442.2,4.92576]
[1728432258930,0.8262,2442.7,2442.2,9.02032]
[1728432259093,0.8262,2442.7,2442.3,4.09439]
[1728432260037,0.8262,2442.7,2442.4,4.09431]
[1728432260926,0.8262,2442.7,2442.3,0.86928736]
[1728432261147,0.8262,2442.7,2442.3,4.96375736]
[1728432264059,0.8262,2442.7,2442.4,4.09431]
[1728432264638,0.8262,2442.7,2442.4,8.18851]
[1728432264873,0.7757,2443.0,2442.6,4.09398]
[1728432265049,0.7757,2443.0,2442.6,8.65989363]
[1728432265947,0.7757,2443.0,2442.6,8.98665]
[1728432266117,0.7757,2443.0,2442.6,8.98657]
[1728432266320,0.7757,2443.0,2442.7,0.98923497]
[1728432266628,0.7757,2443.0,2442.8,4.09355]
[1728432266822,0.8094,2443.2,2442.8,4.09355]
[1728432269270,0.8094,2443.2,2442.9,4.09348]
[1728432269577,0.8094,2443.2,2443.0,4.09331]
[1728432269893,0.7952,2443.4,2443.1,0.409331]
[1728432270104,0.7952,2443.4,2443.1,4.502461]
[1728432270391,4.09233,2443.6,2443.4,4.09262]
[1728432270392,0.8171,2443.6,2443.4,4.09262]
[1728432270693,0.8171,2443.6,2443.2,3.76711363]
[1728432270694,0.8171,2444.1,2443.7,4.092]
[1728432270842,0.8171,2444.1,2443.8,4.09196]
[1728432271038,0.8254,2444.3,2443.8,7.85907363]
[1728432271301,0.8254,2444.3,2443.8,7.85900363]
[1728432271791,0.8254,2444.3,2443.9,4.0918]
[1728432274465,0.7834,2444.5,2444.1,4.09135]
[1728432274983,0.7834,2444.5,2444.2,4.09126]
[1728432275493,0.7834,2444.5,2444.1,0.7694]
[1728432275782,0.7834,2444.5,2443.6,4.09226]